fUSD/lending_fUSD_20250826
["ID","MTS","AMOUNT","RATE_DAILY","PERIOD"]
[381513296,1756241529869,-1274.54,0.00028219,5]
[381513297,1756241529878,-1175.69,0.00028219,5]
[381513298,1756241529887,-153.79077519,0.00028219,5]
[381513299,1756241529897,-618.23,0.00028219,5]
[381513300,1756241529906,-408.64383884,0.00028219,5]
[381513301,1756241529915,-418.77,0.00028219,5]
[381513302,1756241529924,-554.31,0.00028219,5]
[381513303,1756241529933,-972.44,0.00028219,5]
[381513304,1756241529942,-400.0,0.00028219,5]
[381513305,1756241529951,-400.0,0.00028219,5]
[381513306,1756241529962,-685.1,0.00028219,5]
[381513307,1756241529971,-400.0,0.00028219,5]
[381513308,1756241529980,-651.5,0.00028219,5]
[381513309,1756241529990,-1281.45,0.00028219,5]
[381513310,1756241529999,-652.07,0.00028219,5]
[381513311,1756241530008,-958.82,0.00028219,5]
[381513312,1756241530017,-649.23,0.00028219,5]
[381513313,1756241530028,-400.0,0.00028219,5]
[381513314,1756241530037,-400.0,0.00028219,5]
[381513315,1756241530046,-915.75,0.00028219,5]
[381513316,1756241530055,-883.71,0.00028219,5]
[381513317,1756241530065,-946.76,0.00028219,5]
[381513318,1756241530074,-400.0,0.00028219,5]
[381513319,1756241530083,-894.85,0.00028219,5]
[381513320,1756241530092,-585.8,0.00028219,5]
[381513321,1756241530102,-529.42,0.00028219,5]
[381513322,1756241530111,-400.0,0.00028219,2]
[381513323,1756241530120,-507.07,0.00028219,5]
[381513324,1756241530130,-784.82,0.00028219,5]
[381513325,1756241530140,-576.33,0.00028219,5]
[381513326,1756241530150,-504.02,0.00028219,5]
[381513327,1756241530160,-620.82,0.00028219,5]
[381513328,1756241530169,-853.7,0.00028219,5]
[381513329,1756241530178,-465.83,0.00028219,5]
[381513330,1756241530187,-400.0,0.00028219,5]
[381513331,1756241530196,-400.0,0.00028219,5]
[381513332,1756241530205,-1163.82,0.00028219,5]
[381513333,1756241530214,-400.0,0.00028219,5]
[381513334,1756241530224,-912.06,0.00028219,5]
[381513335,1756241530235,-874.35,0.00028219,5]
[381513336,1756241530245,-635.15,0.00028219,5]
[381513337,1756241530255,-1092.8,0.00028219,5]
[381513338,1756241530264,-1307.38,0.00028219,5]
[381513339,1756241530273,-400.0,0.00028219,5]
[381513340,1756241530282,-594.72,0.00028219,5]
[381513341,1756241530292,-400.0,0.00028219,5]
[381513342,1756241530301,-812.28,0.00028219,5]
[381513343,1756241530311,-631.27,0.00028219,5]
[381513344,1756241530321,-1458.57,0.00028219,5]
[381513345,1756241530331,-1590.39,0.00028219,5]
[381513346,1756241530340,-400.0,0.00028219,5]
[381513347,1756241530351,-400.0,0.00028219,5]
[381513348,1756241530360,-400.0,0.00028219,5]
[381513349,1756241530370,-400.0,0.00028219,5]
[381513350,1756241530379,-637.67,0.00028219,5]
[381513351,1756241530388,-867.88,0.00028219,5]
[381513352,1756241530397,-1418.33,0.00028219,5]
[381513353,1756241530406,-400.0,0.00028219,5]
[381513354,1756241530415,-1313.49,0.00028219,5]
[381513355,1756241530424,-1558.02,0.00028219,5]
[381513356,1756241530433,-400.0,0.00028219,5]
[381513357,1756241530443,-430.08,0.00028219,5]
[381513358,1756241530451,-404.64,0.00028219,5]
[381513359,1756241530461,-400.0,0.00028219,5]
[381513360,1756241530471,-400.0,0.00028219,5]
[381513361,1756241530480,-439.24,0.00028219,5]
[381513362,1756241530489,-400.0,0.00028219,5]
[381513363,1756241530499,-493.01315552,0.00028219,5]
[381513364,1756241530509,-1013.92,0.00028219,5]
[381513365,1756241530518,-747.3,0.00028219,5]
[381513366,1756241530528,-663.07,0.00028219,5]
[381513367,1756241530538,-400.0,0.00028219,5]
[381513368,1756241530547,-400.0,0.00028219,5]
[381513369,1756241530556,-1211.27,0.00028219,5]
[381513370,1756241530566,-456.98,0.00028219,5]
[381513371,1756241530575,-259.99,0.00028219,5]
[381513372,1756241530585,-400.0,0.00028219,5]
[381513373,1756241530595,-400.0,0.00028219,5]
[381513374,1756241530605,-745.4,0.00028219,5]
[381513375,1756241530614,-1231.96,0.00028219,5]
[381513376,1756241530623,-1161.0,0.00028219,5]
[381513377,1756241530633,-743.35,0.00028219,5]
[381513378,1756241530642,-655.46,0.00028219,5]
[381513379,1756241530652,-400.0,0.00028219,5]
[381513380,1756241530666,-325.41953547,0.00028219,5]
[381513381,1756241530676,-400.0,0.00028219,5]
[381513382,1756241530688,-400.0,0.00028219,5]
[381513383,1756241530699,-1000.0,0.00028219,5]
[381513384,1756241530709,-848.08,0.00028219,5]
[381513385,1756241530719,-1159.42,0.00028219,5]
[381513386,1756241530729,-400.0,0.00028219,5]
[381513387,1756241530740,-400.0,0.00028219,5]
[381513388,1756241530749,-1000.0,0.00028219,5]
[381513389,1756241530758,-649.59,0.00028219,5]
[381513390,1756241530767,-400.0,0.00028219,5]
[381513391,1756241530776,-400.0,0.00028219,5]
[381513392,1756241530785,-773.34,0.00028219,5]
[381513393,1756241530795,-443.22,0.00028219,5]
[381513394,1756241530804,-743.17,0.00028219,5]
[381513395,1756241530813,-400.0,0.00028219,5]
[381513396,1756241530822,-526.09,0.00028219,5]
[381513397,1756241530832,-1065.78,0.00028219,5]
[381513398,1756241530841,-1318.56,0.00028219,5]
[381513399,1756241530850,-876.48,0.00028219,5]
[381513400,1756241530859,-1259.46,0.00028219,5]
[381513401,1756241530868,-949.19,0.00028219,5]
[381513402,1756241530878,-780.54,0.00028219,5]
[381513403,1756241530887,-887.85,0.00028219,5]
[381513404,1756241530896,-400.0,0.00028219,5]
[381513405,1756241530906,-671.05,0.00028219,5]
[381513406,1756241530915,-1414.96,0.00028219,5]
[381513407,1756241530924,-400.0,0.00028219,5]
[381513408,1756241530933,-400.0,0.00028219,5]
[381513409,1756241530943,-1547.69,0.00028219,5]
[381513410,1756241530951,-400.0,0.00028219,5]
[381513411,1756241530960,-400.0,0.00028219,5]
[381513412,1756241530970,-400.0,0.00028219,5]
[381513413,1756241530979,-400.0,0.00028219,5]
[381513414,1756241530988,-400.0,0.00028219,5]
[381513415,1756241530998,-512.39,0.00028219,5]
[381513416,1756241531007,-400.0,0.00028219,5]
[381513417,1756241531017,-400.0,0.00028219,5]
[381513418,1756241531027,-1535.62,0.00028219,5]
[381513419,1756241531036,-1559.06,0.00028219,5]
[381513420,1756241531045,-1251.31,0.00028219,5]
[381513421,1756241531054,-400.0,0.00028219,5]
[381513422,1756241531063,-653.35,0.00028219,5]
[381513423,1756241531072,-245.19361412,0.00028219,5]
[381513424,1756241531081,-1133.36,0.00028219,5]
[381513425,1756241531091,-400.0,0.00028219,5]
[381513426,1756241531100,-2362.46,0.00028219,5]
[381513427,1756241531109,-400.0,0.00028219,5]
[381513428,1756241531118,-400.0,0.00028219,5]
[381513429,1756241531127,-1339.79,0.00028219,5]
[381513430,1756241531136,-594.75,0.00028219,5]
[381513431,1756241531145,-1103.35,0.00028219,5]
[381513432,1756241531155,-980.8,0.00028219,5]
[381513433,1756241531164,-522.18,0.00028219,5]
[381513434,1756241531172,-400.0,0.00028219,5]
[381513435,1756241531182,-1150.82,0.00028219,5]
[381513436,1756241531191,-736.52,0.00028219,5]
[381513437,1756241531200,-873.8,0.00028219,5]
[381513438,1756241531210,-400.0,0.00028219,5]
[381513439,1756241531219,-400.0,0.00028219,5]
[381513440,1756241531228,-1186.05,0.00028219,5]
[381513441,1756241531239,-400.0,0.00028219,5]
[381513442,1756241531249,-400.0,0.00028219,5]
[381513443,1756241531259,-400.0,0.00028219,5]
[381513444,1756241531269,-838.5,0.00028219,5]
[381513445,1756241531279,-1613.82,0.00028219,5]
[381513446,1756241531288,-1194.72,0.00028219,5]
[381513447,1756241531298,-476.24,0.00028219,5]
[381513448,1756241531308,-476.16,0.00028219,5]
[381513449,1756241531317,-709.35,0.00028219,5]
[381513450,1756241531327,-400.0,0.00028219,5]
[381513451,1756241531336,-1076.09,0.00028219,5]
[381513452,1756241531346,-400.0,0.00028219,5]
[381513453,1756241531356,-400.0,0.00028219,5]
[381513454,1756241531366,-1039.54,0.00028219,5]
[381513455,1756241531375,-400.0,0.00028219,5]
[381513456,1756241531385,-1278.48,0.00028219,5]
[381513457,1756241531395,-400.0,0.00028219,2]
[381513458,1756241531404,-1701.93,0.00028219,5]
[381513459,1756241531413,-400.0,0.00028219,5]
[381513460,1756241531423,-544.88,0.00028219,5]
[381513461,1756241531432,-400.0,0.00028219,5]
[381513462,1756241531441,-461.88,0.00028219,5]
[381513463,1756241531450,-1109.3,0.00028219,5]
[381513464,1756241531460,-400.0,0.00028219,5]
[381513465,1756241531470,-1060.69,0.00028219,5]
[381513466,1756241531479,-903.46,0.00028219,5]
[381513467,1756241531488,-400.0,0.00028219,5]
[381513468,1756241531498,-1446.06,0.00028219,5]
[381513469,1756241531507,-400.0,0.00028219,5]
[381513470,1756241531516,-400.0,0.00028219,5]
[381513471,1756241531526,-927.15,0.00028219,5]
[381513472,1756241531534,-449.99,0.00028219,5]
[381513473,1756241531543,-1108.01,0.00028219,5]
[381513474,1756241531552,-495.7486343,0.00028219,5]
[381513475,1756241531562,-419.09,0.00028219,5]
[381513476,1756241531571,-981.22,0.00028219,5]
[381513477,1756241531581,-895.35,0.00028219,5]
[381513478,1756241531590,-400.0,0.00028219,5]
[381513479,1756241531600,-400.0,0.00028219,5]
[381513480,1756241531609,-452.45,0.00028219,5]
[381513481,1756241531619,-863.29,0.00028219,5]
[381513482,1756241531628,-3766.32,0.00028219,5]
[381513483,1756241531637,-1196.06,0.00028219,5]
[381513484,1756241531647,-465.1,0.00028219,5]
[381513485,1756241531659,-726.39,0.00028219,5]
[381513486,1756241531670,-400.0,0.00028219,5]
[381513487,1756241531680,-1057.01,0.00028219,5]
[381513488,1756241531689,-400.0,0.00028219,5]
[381513489,1756241531699,-1043.85,0.00028219,5]
[381513490,1756241531710,-550.37,0.00028219,5]
[381513491,1756241531719,-1442.83,0.00028219,5]
[381513492,1756241531729,-1108.15,0.00028219,5]
[381513493,1756241531739,-724.05,0.00028219,5]
[381513494,1756241531748,-1302.26,0.00028219,5]
[381513495,1756241531757,-400.0,0.00028219,5]
[381513496,1756241531767,-400.0,0.00028219,5]
[381513497,1756241531776,-400.0,0.00028219,5]
[381513498,1756241531786,-400.0,0.00028219,5]
[381513499,1756241531795,-1602.59,0.00028219,5]
[381513500,1756241531806,-400.0,0.00028219,5]
[381513501,1756241531815,-513.25,0.00028219,5]
[381513502,1756241531825,-1161.97,0.00028219,5]
[381513503,1756241531835,-400.0,0.00028219,5]
[381513504,1756241531844,-619.03,0.00028219,5]
[381513505,1756241531854,-898.08,0.00028219,5]
[381513506,1756241531864,-400.0,0.00028219,5]
[381513507,1756241531873,-1031.63,0.00028219,5]
[381513508,1756241531883,-400.0,0.00028219,5]
[381513509,1756241531893,-601.75,0.00028219,5]
[381513510,1756241531903,-665.32,0.00028219,5]
[381513511,1756241531912,-462.67,0.00028219,5]
[381513512,1756241531922,-412.46,0.00028219,5]
[381513513,1756241531931,-632.38,0.00028219,5]
[381513514,1756241531940,-400.0,0.00028219,5]
[381513515,1756241531950,-1081.36,0.00028219,5]
[381513516,1756241531959,-1012.0,0.00028219,5]
[381513517,1756241531969,-603.38,0.00028219,5]
[381513518,1756241531981,-1539.72,0.00028219,5]
[381513519,1756241531990,-941.11,0.00028219,5]
[381513520,1756241531999,-1249.28,0.00028219,5]
[381513521,1756241532009,-400.0,0.00028219,5]
[381513522,1756241532019,-400.0,0.00028219,5]
[381513523,1756241532028,-605.99,0.00028219,5]
[381513524,1756241532037,-1357.5,0.00028219,5]
[381513525,1756241532049,-400.0,0.00028219,5]
[381513526,1756241532058,-898.18,0.00028219,5]
[381513527,1756241532067,-833.74,0.00028219,5]
[381513528,1756241532327,-400.0,0.00028219,5]
[381513529,1756241532337,-400.0,0.00028219,5]
[381513530,1756241532347,-612.88,0.00028219,5]
[381513531,1756241532357,-810.06,0.00028219,5]
[381513532,1756241532367,-1427.98,0.00028219,5]
[381513533,1756241532377,-400.0,0.00028219,5]
[381513534,1756241532386,-400.0,0.00028219,5]
[381513535,1756241532396,-856.12,0.00028219,5]
[381513536,1756241532405,-888.88,0.00028219,5]
[381513537,1756241532414,-899.13,0.00028219,5]
[381513538,1756241532424,-1007.292766,0.00028219,5]
[381513539,1756241532433,-1124.57,0.00028219,5]
[381513540,1756241532442,-481.34,0.00028219,5]
[381513541,1756241532452,-1028.9,0.00028219,5]
[381513542,1756241532462,-400.0,0.00028219,5]
[381513543,1756241532471,-536.96,0.00028219,5]
[381513544,1756241532481,-965.59,0.00028219,5]
[381513545,1756241532490,-1454.97,0.00028219,5]
[381513546,1756241532499,-400.0,0.00028219,5]
[381513547,1756241532509,-1082.39,0.00028219,5]
[381513548,1756241532518,-643.97,0.00028219,5]
[381513549,1756241532528,-1176.37,0.00028219,5]
[381513550,1756241532537,-715.42,0.00028219,5]
[381513551,1756241532546,-583.29,0.00028219,5]
[381513552,1756241532555,-627.32,0.00028219,5]
[381513553,1756241532564,-400.0,0.00028219,5]
[381513554,1756241532573,-852.32,0.00028219,5]
[381513555,1756241532582,-1051.04,0.00028219,5]
[381513556,1756241532592,-400.0,0.00028219,5]
[381513557,1756241532603,-400.0,0.00028219,5]
[381513558,1756241532613,-400.0,0.00028219,5]
[381513559,1756241532623,-848.91,0.00028219,5]
[381513560,1756241532632,-1259.85,0.00028219,5]
[381513561,1756241532641,-1256.33,0.00028219,5]
[381513562,1756241532651,-518.57395614,0.00028219,5]
[381513563,1756241532665,-1391.9,0.00028219,5]
[381513564,1756241532675,-400.0,0.00028219,5]
[381513565,1756241532684,-678.84,0.00028219,5]
[381513566,1756241532694,-734.14,0.00028219,5]
[381513567,1756241532705,-1112.03,0.00028219,5]
[381513568,1756241532714,-630.84,0.00028219,5]
[381513569,1756241532724,-900.59,0.00028219,5]
[381513570,1756241532735,-400.0,0.00028219,5]
[381513571,1756241532745,-400.0,0.00028219,5]
[381513572,1756241532754,-734.29,0.00028219,5]
[381513573,1756241532764,-1055.56,0.00028219,5]
[381513574,1756241532774,-1238.35,0.00028219,5]
[381513575,1756241532783,-400.0,0.00028219,5]
[381513576,1756241532793,-627.84,0.00028219,5]
[381513577,1756241532803,-400.0,0.00028219,5]
[381513578,1756241532812,-400.0,0.00028219,5]
[381513579,1756241532822,-938.44,0.00028219,5]
[381513580,1756241532832,-841.62,0.00028219,5]
[381513581,1756241532842,-400.0,0.00028219,5]
[381513582,1756241532852,-400.0,0.00028219,5]
[381513583,1756241532862,-400.0,0.00028219,5]
[381513584,1756241532871,-400.0,0.00028219,5]
[381513585,1756241532880,-1441.05,0.00028219,5]
[381513586,1756241532890,-400.0,0.00028219,5]
[381513587,1756241532901,-709.18,0.00028219,5]
[381513588,1756241532910,-687.78,0.00028219,5]
[381513589,1756241532921,-400.0,0.00028219,5]
[381513590,1756241532931,-517.5,0.00028219,5]
[381513591,1756241532941,-400.0,0.00028219,5]
[381513592,1756241532951,-624.39,0.00028219,5]
[381513593,1756241532961,-317.56608767,0.00028219,5]
[381513594,1756241532971,-837.2,0.00028219,5]
[381513595,1756241532980,-653.97,0.00028219,5]
[381513596,1756241532990,-400.0,0.00028219,5]
[381513597,1756241533000,-749.44,0.00028219,5]
[381513598,1756241533009,-900.98,0.00028219,5]
[381513599,1756241533019,-535.64,0.00028219,5]
[381513600,1756241533029,-1718.21,0.00028219,5]
[381513601,1756241533038,-900.97,0.00028219,5]
[381513602,1756241533048,-393.58371052,0.00028219,5]
[381513603,1756241533058,-779.83,0.00028219,5]
[381513604,1756241533067,-1229.31,0.00028219,5]
[381513605,1756241533078,-659.08,0.00028219,5]
[381513606,1756241533087,-616.16,0.00028219,5]
[381513607,1756241533098,-400.0,0.00028219,5]
[381513608,1756241533107,-491.04,0.00028219,5]
[381513609,1756241533116,-1259.01,0.00028219,5]
[381513610,1756241533126,-1472.7,0.00028219,5]
[381513611,1756241533135,-400.0,0.00028219,5]
[381513612,1756241533145,-6220.52,0.00028219,5]
[381513613,1756241533155,-400.0,0.00028219,5]
[381513614,1756241533165,-400.0,0.00028219,5]
[381513615,1756241533174,-400.0,0.00028219,5]
[381513616,1756241533184,-643.63,0.00028219,5]
[381513617,1756241533194,-400.0,0.00028219,5]
[381513618,1756241533203,-400.0,0.00028219,5]
[381513619,1756241533213,-2007.19,0.00028219,5]
[381513620,1756241533222,-420.19,0.00028219,5]
[381513621,1756241533231,-400.0,0.00028219,5]
[381513622,1756241533241,-676.7,0.00028219,5]
[381513623,1756241533251,-643.98,0.00028219,5]
[381513624,1756241533261,-1054.44,0.00028219,5]
[381513625,1756241533270,-1051.83,0.00028219,5]
[381513626,1756241533280,-1056.1,0.00028219,5]
[381513627,1756241533290,-400.0,0.00028219,5]
[381513628,1756241533299,-400.0,0.00028219,5]
[381513629,1756241533309,-400.0,0.00028219,5]
[381513630,1756241533319,-400.0,0.00028219,5]
[381513631,1756241533329,-400.0,0.00028219,5]
[381513632,1756241533339,-400.0,0.00028219,5]
[381513633,1756241533349,-1267.72,0.00028219,5]
[381513634,1756241533359,-400.0,0.00028219,5]
[381513635,1756241533369,-543.47,0.00028219,5]
[381513636,1756241533378,-999.8,0.00028219,5]
[381513637,1756241533389,-733.94,0.00028219,5]
[381513638,1756241533399,-1020.36,0.00028219,5]
[381513639,1756241533409,-424.81,0.00028219,5]
[381513640,1756241533418,-400.0,0.00028219,5]
[381513641,1756241533428,-400.0,0.00028219,5]
[381513642,1756241533438,-400.0,0.00028219,5]
[381513643,1756241533447,-632.12,0.00028219,5]
[381513644,1756241533457,-1257.56,0.00028219,5]
[381513645,1756241533466,-684.21,0.00028219,5]
[381513646,1756241533475,-1051.73,0.00028219,5]
[381513647,1756241533485,-400.0,0.00028219,5]
[381513648,1756241533495,-400.0,0.00028219,5]
[381513649,1756241533504,-427.42,0.00028219,5]
[381513650,1756241533516,-1314.39,0.00028219,5]
[381513651,1756241533526,-400.0,0.00028219,5]
[381513652,1756241533536,-872.72,0.00028219,5]
[381513653,1756241533546,-400.0,0.00028219,5]
[381513654,1756241533556,-1433.18,0.00028219,5]
[381513655,1756241533566,-1106.48,0.00028219,5]
[381513656,1756241533575,-400.0,0.00028219,5]
[381513657,1756241533585,-1135.85,0.00028219,5]
[381513658,1756241533595,-400.0,0.00028219,5]
[381513659,1756241533605,-480.26,0.00028219,5]
[381513660,1756241533615,-533.82,0.00028219,5]
[381513661,1756241533625,-400.0,0.00028219,5]
[381513662,1756241533634,-531.08,0.00028219,5]
[381513663,1756241533644,-697.45,0.00028219,5]
[381513664,1756241533654,-400.0,0.00028219,5]
[381513665,1756241533667,-1372.17,0.00028219,5]
[381513666,1756241533677,-400.0,0.00028219,5]
[381513667,1756241533687,-400.0,0.00028219,5]
[381513668,1756241533699,-400.0,0.00028219,5]
[381513669,1756241533709,-422.98,0.00028219,5]
[381513670,1756241533718,-400.0,0.00028219,5]
[381513671,1756241533730,-400.0,0.00028219,5]
[381513672,1756241533740,-943.45,0.00028219,5]
[381513673,1756241533752,-466.03,0.00028219,5]
[381513674,1756241533762,-400.0,0.00028219,5]
[381513675,1756241533773,-413.75,0.00028219,5]
[381513676,1756241533784,-506.68,0.00028219,5]
[381513677,1756241533794,-1447.7,0.00028219,5]
[381513678,1756241533804,-597.05,0.00028219,5]
[381513679,1756241533814,-421.34,0.00028219,5]
[381513680,1756241533825,-1200.97,0.00028219,5]
[381513681,1756241533835,-639.54,0.00028219,5]
[381513682,1756241533845,-557.8,0.00028219,5]
[381513683,1756241533855,-721.4,0.00028219,5]
[381513684,1756241533865,-1078.08,0.00028219,5]
[381513685,1756241533875,-400.0,0.00028219,5]
[381513686,1756241533885,-439.92,0.00028219,5]
[381513687,1756241533895,-400.0,0.00028219,5]
[381513688,1756241533905,-680.37,0.00028219,5]
[381513689,1756241533915,-445.72,0.00028219,5]
[381513690,1756241533925,-400.0,0.00028219,5]
[381513691,1756241533934,-400.0,0.00028219,5]
[381513692,1756241533944,-470.01,0.00028219,5]
[381513693,1756241533954,-582.67,0.00028219,5]
[381513694,1756241533963,-435.39,0.00028219,5]
[381513695,1756241533973,-413.89,0.00028219,5]
[381513696,1756241533982,-1250.64,0.00028219,5]
[381513697,1756241533992,-400.0,0.00028219,5]
[381513698,1756241534002,-400.0,0.00028219,5]
[381513699,1756241534012,-4222.37,0.00028219,5]
[381513700,1756241534022,-772.81,0.00028219,5]
[381513701,1756241534032,-400.0,0.00028219,5]
[381513702,1756241534042,-713.79,0.00028219,5]
[381513703,1756241534054,-340.20868615,0.00028219,5]
[381513704,1756241534063,-400.0,0.00028219,5]
[381513705,1756241534074,-1123.12,0.00028219,5]
[381513706,1756241534084,-740.5,0.00028219,5]
[381513707,1756241534094,-400.0,0.00028219,5]
[381513708,1756241534104,-1234.67,0.00028219,5]
[381513709,1756241534114,-4885.23,0.00028219,5]
[381513710,1756241534125,-400.0,0.00028219,5]
[381513711,1756241534135,-400.0,0.00028219,5]
[381513712,1756241534145,-400.0,0.00028219,5]
[381513713,1756241534155,-400.0,0.00028219,5]
[381513714,1756241534165,-1163.75,0.00028219,5]
[381513715,1756241534175,-769.52,0.00028219,5]
[381513716,1756241534185,-993.99,0.00028219,5]
[381513717,1756241534196,-400.0,0.00028219,5]
[381513718,1756241534207,-1385.26,0.00028219,5]
[381513719,1756241534217,-903.93,0.00028219,5]
[381513720,1756241534227,-774.37,0.00028219,5]
[381513721,1756241534237,-457.43,0.00028219,5]
[381513722,1756241534248,-760.06,0.00028219,5]
[381513723,1756241534258,-660.24,0.00028219,5]
[381513724,1756241534268,-857.32,0.00028219,5]
[381513725,1756241534279,-1019.09,0.00028219,5]
[381513726,1756241534288,-314.03272882,0.00028219,5]
[381513727,1756241534298,-400.0,0.00028219,5]
[381513728,1756241534308,-1221.96,0.00028219,5]
[381513729,1756241534318,-545.29,0.00028219,5]
[381513730,1756241534327,-400.0,0.00028219,5]
[381513731,1756241534337,-400.0,0.00028219,5]
[381513732,1756241534347,-1182.93,0.00028219,5]
[381513733,1756241534356,-1248.35,0.00028219,5]
[381513734,1756241534366,-400.0,0.00028219,5]
[381513735,1756241534376,-400.0,0.00028219,5]
[381513736,1756241534385,-659.25,0.00028219,5]
[381513737,1756241534395,-400.0,0.00028219,5]
[381513738,1756241534404,-452.79,0.00028219,5]
[381513739,1756241534413,-1007.13,0.00028219,5]
[381513740,1756241534424,-878.29,0.00028219,5]
[381513741,1756241534435,-400.0,0.00028219,5]
[381513742,1756241534445,-481.02,0.00028219,5]
[381513743,1756241534455,-644.55,0.00028219,5]
[381513744,1756241534465,-1036.94,0.00028219,5]
[381513745,1756241534474,-400.0,0.00028219,5]
[381513746,1756241534484,-528.32,0.00028219,5]
[381513747,1756241534494,-686.45,0.00028219,5]
[381513748,1756241534504,-867.32,0.00028219,5]
[381513749,1756241534513,-632.56,0.00028219,5]
[381513750,1756241534523,-926.4,0.00028219,5]
[381513751,1756241534532,-226.74376106,0.00028219,5]
[381513752,1756241534542,-1122.11,0.00028219,5]
[381513753,1756241534552,-400.0,0.00028219,5]
[381513754,1756241534562,-562.25,0.00028219,5]
[381513755,1756241534572,-490.0,0.00028219,5]
[381513756,1756241534582,-400.0,0.00028219,5]
[381513757,1756241534591,-1668.68,0.00028219,5]
[381513758,1756241534602,-400.0,0.00028219,5]
[381513759,1756241534611,-620.61,0.00028219,5]
[381513760,1756241534621,-697.31,0.00028219,5]
[381513761,1756241534631,-557.44,0.00028219,5]
[381513762,1756241534640,-405.49,0.00028219,5]
[381513763,1756241534650,-653.23,0.00028219,5]
[381513764,1756241534664,-400.0,0.00028219,5]
[381513765,1756241534674,-446.38,0.00028219,5]
[381513766,1756241534684,-400.0,0.00028219,5]
[381513767,1756241534694,-639.1,0.00028219,5]
[381513768,1756241534705,-984.73,0.00028219,7]
[381513769,1756241534715,-655.37,0.00028219,5]
[381513770,1756241534724,-918.96,0.00028219,5]
[381513771,1756241534735,-674.78,0.00028219,5]
[381513772,1756241534745,-400.0,0.00028219,5]
[381513773,1756241534755,-861.82,0.00028219,5]
[381513774,1756241534765,-400.0,0.00028219,5]
[381513775,1756241534775,-761.79,0.00028219,5]
[381513776,1756241534787,-463.36,0.00028219,5]
[381513777,1756241534798,-664.31,0.00028219,5]
[381513778,1756241534808,-648.27,0.00028219,5]
[381513779,1756241534818,-400.0,0.00028219,5]
[381513780,1756241534945,-931.51,0.00028219,5]
[381513781,1756241534955,-490.0,0.00028219,5]
[381513782,1756241534965,-1214.43,0.00028219,5]
[381513783,1756241534975,-832.09,0.00028219,5]
[381513784,1756241534985,-1143.51,0.00028219,5]
[381513785,1756241534996,-418.56,0.00028219,5]
[381513786,1756241535006,-400.0,0.00028219,5]
[381513787,1756241535016,-1162.39,0.00028219,5]
[381513788,1756241535027,-638.2,0.00028219,5]
[381513789,1756241535036,-400.0,0.00028219,5]
[381513790,1756241535046,-400.0,0.00028219,5]
[381513791,1756241535055,-400.0,0.00028219,5]
[381513792,1756241535064,-400.0,0.00028219,5]
[381513793,1756241535074,-499.96,0.00028219,5]
[381513794,1756241535084,-400.0,0.00028219,5]
[381513795,1756241535093,-737.35,0.00028219,5]